[Event "Titled Tuesday Blitz December 06 Early 2022"]
[White "Kaplan, Avi Harrison"]
[Black "Tarnowska, Aleksandra"]
[WhiteFideId "30934559"]
[BlackFideId "1180967"]
[WhiteElo "1983"]
[BlackElo "1776"]
[Result "1-0"]
[Round "08"]
[TimeControl "180+1"]
[Date "2022.12.07"]
[WhiteClock "0:00:24"]
[BlackClock "0:00:01"]

1. a3 {[%clk 0:03:00]}  e5 {[%clk 0:02:55]} 2. c4 {[%clk 0:02:59]}  c6 {[%clk 0:02:52]} 3. Nf3 {[%clk 0:02:57]}  e4 {[%clk 0:02:50]} 4. Nd4 {[%clk 0:02:56]}  d5 {[%clk 0:02:50]} 5. cxd5 {[%clk 0:02:51]}  cxd5 {[%clk 0:02:51]} 6. Nc3 {[%clk 0:02:51]}  Nf6 {[%clk 0:02:49]} 7. d3 {[%clk 0:02:51]}  Bc5 {[%clk 0:02:30]} 8. Nb3 {[%clk 0:02:47]}  Be7 {[%clk 0:01:39]} 9. Bg5 {[%clk 0:02:40]}  O-O {[%clk 0:01:38]} 10. e3 {[%clk 0:02:35]}  h6 {[%clk 0:01:36]} 11. Bh4 {[%clk 0:02:24]}  Bf5 {[%clk 0:01:34]} 12. Be2 {[%clk 0:02:22]}  Nc6 {[%clk 0:01:34]} 13. O-O {[%clk 0:02:21]}  Ne5 {[%clk 0:01:16]} 14. d4 {[%clk 0:02:14]}  Ng6 {[%clk 0:01:16]} 15. Bg3 {[%clk 0:02:13]}  a6 {[%clk 0:01:15]} 16. Rc1 {[%clk 0:02:12]}  Rc8 {[%clk 0:01:15]} 17. Na4 {[%clk 0:02:12]}  Nd7 {[%clk 0:01:07]} 18. Qd2 {[%clk 0:02:10]}  Bh4 {[%clk 0:01:06]} 19. Rxc8 {[%clk 0:02:01]}  Qxc8 {[%clk 0:01:04]} 20. Rc1 {[%clk 0:02:01]}  Qd8 {[%clk 0:01:00]} 21. Bd6 {[%clk 0:01:27]}  Re8 {[%clk 0:00:53]} 22. Nbc5 {[%clk 0:01:26]}  Nxc5 {[%clk 0:00:49]} 23. Bxc5 {[%clk 0:01:27]}  b5 {[%clk 0:00:31]} 24. Nb6 {[%clk 0:01:13]}  Be6 {[%clk 0:00:31]} 25. a4 {[%clk 0:01:08]}  bxa4 {[%clk 0:00:29]} 26. Bxa6 {[%clk 0:01:08]}  Qf6 {[%clk 0:00:28]} 27. Bb5 {[%clk 0:01:06]}  Rb8 {[%clk 0:00:22]} 28. Bxa4 {[%clk 0:01:06]}  Qg5 {[%clk 0:00:20]} 29. b4 {[%clk 0:00:43]}  Bh3 {[%clk 0:00:19]} 30. g3 {[%clk 0:00:41]}  Qg4 {[%clk 0:00:15]} 31. Bb5 {[%clk 0:00:41]}  Qf3 {[%clk 0:00:14]} 32. Bf1 {[%clk 0:00:42]}  Bxf1 {[%clk 0:00:12]} 33. Rxf1 {[%clk 0:00:42]}  Bd8 {[%clk 0:00:13]} 34. Nxd5 {[%clk 0:00:41]}  h5 {[%clk 0:00:08]} 35. Qd1 {[%clk 0:00:40]}  Qf5 {[%clk 0:00:07]} 36. Nc3 {[%clk 0:00:34]}  h4 {[%clk 0:00:06]} 37. Qc2 {[%clk 0:00:34]}  hxg3 {[%clk 0:00:05]} 38. fxg3 {[%clk 0:00:34]}  Qg5 {[%clk 0:00:03]} 39. Qxe4 {[%clk 0:00:34]}  Bf6 {[%clk 0:00:02]} 40. b5 {[%clk 0:00:25]}  Qh5 {[%clk 0:00:02]} 41. b6 {[%clk 0:00:23]}  Rc8 {[%clk 0:00:01]} 42. Nd5 {[%clk 0:00:24]} 1-0


[Site "https://www.chess.com"]

[Event "Titled Tuesday Blitz December 06 Early 2022"]
[White "Kleiman, Jake"]
[Black "Yeletsky, Ivan"]
[WhiteFideId "2020041"]
[BlackFideId "24180327"]
[WhiteElo "2562"]
[BlackElo "2391"]
[Result "0-1"]
[Round "08"]
[TimeControl "180+1"]
[Date "2022.12.07"]
[WhiteClock "0:00:09"]
[BlackClock "0:00:17"]

1. e4 {[%clk 0:03:00]}  Nf6 {[%clk 0:02:58]} 2. e5 {[%clk 0:03:01]}  Nd5 {[%clk 0:02:58]} 3. d4 {[%clk 0:03:02]}  d6 {[%clk 0:02:59]} 4. Nf3 {[%clk 0:03:02]}  dxe5 {[%clk 0:02:59]} 5. Nxe5 {[%clk 0:03:03]}  c6 {[%clk 0:03:00]} 6. Bc4 {[%clk 0:03:03]}  Nd7 {[%clk 0:02:59]} 7. Nf3 {[%clk 0:03:03]}  e6 {[%clk 0:03:00]} 8. O-O {[%clk 0:03:04]}  Be7 {[%clk 0:03:00]} 9. Re1 {[%clk 0:03:01]}  O-O {[%clk 0:03:01]} 10. c3 {[%clk 0:02:59]}  b6 {[%clk 0:03:01]} 11. Nbd2 {[%clk 0:02:59]}  Bb7 {[%clk 0:02:59]} 12. Bb3 {[%clk 0:02:57]}  c5 {[%clk 0:02:59]} 13. Ne4 {[%clk 0:02:56]}  cxd4 {[%clk 0:02:50]} 14. cxd4 {[%clk 0:02:55]}  Rc8 {[%clk 0:02:43]} 15. a3 {[%clk 0:02:53]}  N7f6 {[%clk 0:02:41]} 16. Ng3 {[%clk 0:02:49]}  Bd6 {[%clk 0:02:29]} 17. Ne5 {[%clk 0:02:47]}  Rc7 {[%clk 0:02:29]} 18. Bg5 {[%clk 0:02:45]}  Be7 {[%clk 0:02:25]} 19. Qd3 {[%clk 0:02:41]}  Nd7 {[%clk 0:02:15]} 20. Bc2 {[%clk 0:02:30]}  f5 {[%clk 0:02:11]} 21. Bxe7 {[%clk 0:02:00]}  Qxe7 {[%clk 0:02:11]} 22. Qd2 {[%clk 0:01:52]}  f4 {[%clk 0:01:52]} 23. Ne4 {[%clk 0:01:48]}  Nxe5 {[%clk 0:01:46]} 24. dxe5 {[%clk 0:01:48]}  f3 {[%clk 0:01:46]} 25. g3 {[%clk 0:01:42]}  Qe8 {[%clk 0:01:42]} 26. Nd6 {[%clk 0:01:13]}  Qh5 {[%clk 0:01:39]} 27. Bd3 {[%clk 0:01:07]}  Nf4 {[%clk 0:01:31]} 28. Bf1 {[%clk 0:01:00]}  Bd5 {[%clk 0:00:22]} 29. gxf4 {[%clk 0:00:45]}  Qg6+ {[%clk 0:00:20]} 30. Kh1 {[%clk 0:00:44]}  Rc2 {[%clk 0:00:21]} 31. Qe3 {[%clk 0:00:20]}  Rxf4 {[%clk 0:00:20]} 32. Qxf4 {[%clk 0:00:12]}  Rxf2 {[%clk 0:00:20]} 33. Qg3 {[%clk 0:00:09]}  Rxf1+ {[%clk 0:00:17]} 0-1


[Site "https://www.chess.com"]

[Event "Titled Tuesday Blitz December 06 Early 2022"]
[White "Korobov, Anton"]
[Black "Zemlyanskii, Ivan"]
[WhiteFideId "14105730"]
[BlackFideId "24249971"]
[WhiteElo "2635"]
[BlackElo "2107"]
[Result "1-0"]
[Round "08"]
[TimeControl "180+1"]
[Date "2022.12.06"]
[WhiteClock "0:00:51"]
[BlackClock "0:00:02"]

1. d4 {[%clk 0:03:00]}  d5 {[%clk 0:02:58]} 2. c4 {[%clk 0:03:00]}  e6 {[%clk 0:02:58]} 3. Nc3 {[%clk 0:02:59]}  c6 {[%clk 0:02:58]} 4. e4 {[%clk 0:02:59]}  dxe4 {[%clk 0:02:58]} 5. Nxe4 {[%clk 0:03:00]}  Bb4+ {[%clk 0:02:58]} 6. Nc3 {[%clk 0:03:00]}  e5 {[%clk 0:02:56]} 7. a3 {[%clk 0:02:56]}  Bxc3+ {[%clk 0:02:47]} 8. bxc3 {[%clk 0:02:57]}  Nf6 {[%clk 0:02:45]} 9. Nf3 {[%clk 0:02:55]}  Bg4 {[%clk 0:02:36]} 10. Be2 {[%clk 0:02:49]}  exd4 {[%clk 0:02:18]} 11. cxd4 {[%clk 0:02:50]}  O-O {[%clk 0:02:18]} 12. O-O {[%clk 0:02:49]}  Nbd7 {[%clk 0:02:18]} 13. h3 {[%clk 0:02:44]}  Bh5 {[%clk 0:02:18]} 14. Be3 {[%clk 0:02:39]}  Qc7 {[%clk 0:02:16]} 15. Qb3 {[%clk 0:02:36]}  Rfe8 {[%clk 0:02:00]} 16. a4 {[%clk 0:02:29]}  Ne4 {[%clk 0:01:51]} 17. a5 {[%clk 0:02:20]}  b6 {[%clk 0:01:45]} 18. Rfe1 {[%clk 0:02:18]}  Rab8 {[%clk 0:01:36]} 19. a6 {[%clk 0:02:11]}  b5 {[%clk 0:01:16]} 20. cxb5 {[%clk 0:02:05]}  cxb5 {[%clk 0:01:17]} 21. Rec1 {[%clk 0:01:54]}  Qd6 {[%clk 0:01:08]} 22. Ne5 {[%clk 0:01:46]}  Bg6 {[%clk 0:00:38]} 23. Nc6 {[%clk 0:01:37]}  Rb6 {[%clk 0:00:34]} 24. d5 {[%clk 0:01:38]}  Ndc5 {[%clk 0:00:28]} 25. Qb4 {[%clk 0:01:25]}  Rxa6 {[%clk 0:00:07]} 26. Bxc5 {[%clk 0:01:15]}  Rxa1 {[%clk 0:00:06]} 27. Bxd6 {[%clk 0:01:14]}  Rxc1+ {[%clk 0:00:02]} 28. Kh2 {[%clk 0:01:14]}  Nxf2 {[%clk 0:00:03]} 29. Ne7+ {[%clk 0:01:15]}  Kh8 {[%clk 0:00:03]} 30. Bf3 {[%clk 0:01:07]}  Rd8 {[%clk 0:00:03]} 31. Nxg6+ {[%clk 0:01:02]}  fxg6 {[%clk 0:00:04]} 32. Be5 {[%clk 0:01:00]}  Nd3 {[%clk 0:00:02]} 33. Qe7 {[%clk 0:00:57]}  Rg8 {[%clk 0:00:02]} 34. Bg3 {[%clk 0:00:51]} 1-0


[Site "https://www.chess.com"]

[Event "Titled Tuesday Blitz December 06 Early 2022"]
[White "Kvaloy, Aksel Bu"]
[Black "Fiedorek, Michal"]
[WhiteFideId "1528815"]
[BlackFideId "1199528"]
[WhiteElo "2184"]
[BlackElo "2201"]
[Result "1-0"]
[Round "08"]
[TimeControl "180+1"]
[Date "2022.12.07"]
[WhiteClock "0:00:07"]
[BlackClock "0:00:10"]

1. d4 {[%clk 0:03:00]}  Nf6 {[%clk 0:02:56]} 2. c4 {[%clk 0:03:00]}  e6 {[%clk 0:02:56]} 3. g3 {[%clk 0:02:57]}  d5 {[%clk 0:02:48]} 4. Nf3 {[%clk 0:02:56]}  Bb4+ {[%clk 0:02:48]} 5. Bd2 {[%clk 0:02:55]}  Be7 {[%clk 0:02:48]} 6. Bg2 {[%clk 0:02:55]}  O-O {[%clk 0:02:48]} 7. O-O {[%clk 0:02:53]}  c6 {[%clk 0:02:49]} 8. Qc2 {[%clk 0:02:52]}  b6 {[%clk 0:02:49]} 9. Bf4 {[%clk 0:02:51]}  Nh5 {[%clk 0:02:44]} 10. Bxb8 {[%clk 0:02:49]}  Rxb8 {[%clk 0:02:43]} 11. e4 {[%clk 0:02:44]}  dxe4 {[%clk 0:02:41]} 12. Qxe4 {[%clk 0:02:43]}  Bb7 {[%clk 0:02:40]} 13. Qe2 {[%clk 0:02:40]}  c5 {[%clk 0:02:33]} 14. Rd1 {[%clk 0:02:40]}  Qc7 {[%clk 0:02:28]} 15. Nc3 {[%clk 0:02:38]}  cxd4 {[%clk 0:02:22]} 16. Nxd4 {[%clk 0:02:38]}  Bxg2 {[%clk 0:02:21]} 17. Kxg2 {[%clk 0:02:39]}  Nf6 {[%clk 0:02:20]} 18. Ndb5 {[%clk 0:02:35]}  Qc6+ {[%clk 0:02:10]} 19. Qf3 {[%clk 0:02:21]}  Qxc4 {[%clk 0:02:06]} 20. Rac1 {[%clk 0:02:18]}  a6 {[%clk 0:02:03]} 21. Na7 {[%clk 0:02:13]}  Qc7 {[%clk 0:01:47]} 22. Nc6 {[%clk 0:02:09]}  Rbc8 {[%clk 0:01:39]} 23. Ne2 {[%clk 0:01:53]}  Bc5 {[%clk 0:01:37]} 24. Ncd4 {[%clk 0:01:45]}  Qe7 {[%clk 0:01:30]} 25. Qd3 {[%clk 0:01:41]}  Qb7+ {[%clk 0:01:26]} 26. f3 {[%clk 0:01:37]}  Rfd8 {[%clk 0:01:21]} 27. Qe3 {[%clk 0:00:58]}  Nd5 {[%clk 0:01:13]} 28. Qe5 {[%clk 0:00:56]}  Be7 {[%clk 0:01:07]} 29. Rxc8 {[%clk 0:00:53]}  Rxc8 {[%clk 0:00:47]} 30. Nxe6 {[%clk 0:00:51]}  Bf6 {[%clk 0:00:20]} 31. Qxd5 {[%clk 0:00:48]}  Qxd5 {[%clk 0:00:21]} 32. Rxd5 {[%clk 0:00:48]}  fxe6 {[%clk 0:00:22]} 33. Rd2 {[%clk 0:00:48]}  Rc4 {[%clk 0:00:19]} 34. Nf4 {[%clk 0:00:45]}  Kf7 {[%clk 0:00:19]} 35. Re2 {[%clk 0:00:39]}  Rc6 {[%clk 0:00:16]} 36. b3 {[%clk 0:00:32]}  a5 {[%clk 0:00:16]} 37. Nd3 {[%clk 0:00:27]}  b5 {[%clk 0:00:16]} 38. Kf2 {[%clk 0:00:27]}  Rc3 {[%clk 0:00:13]} 39. Ke3 {[%clk 0:00:25]}  a4 {[%clk 0:00:11]} 40. bxa4 {[%clk 0:00:24]}  bxa4 {[%clk 0:00:11]} 41. Kd2 {[%clk 0:00:24]}  Rc6 {[%clk 0:00:11]} 42. Re5 {[%clk 0:00:21]}  Rd6 {[%clk 0:00:05]} 43. Ra5 {[%clk 0:00:21]}  Rd4 {[%clk 0:00:05]} 44. Ke3 {[%clk 0:00:20]}  Rc4 {[%clk 0:00:05]} 45. a3 {[%clk 0:00:17]}  Kg6 {[%clk 0:00:04]} 46. Nf4+ {[%clk 0:00:16]}  Kf7 {[%clk 0:00:04]} 47. Ra7+ {[%clk 0:00:17]}  Be7 {[%clk 0:00:04]} 48. Nd3 {[%clk 0:00:16]}  Rc3 {[%clk 0:00:04]} 49. Rxa4 {[%clk 0:00:14]}  Rxa3 {[%clk 0:00:05]} 50. Rf4+ {[%clk 0:00:10]}  Ke8 {[%clk 0:00:05]} 51. Re4 {[%clk 0:00:10]}  Kd7 {[%clk 0:00:05]} 52. h4 {[%clk 0:00:09]}  Bd6 {[%clk 0:00:06]} 53. g4 {[%clk 0:00:09]}  Ra1 {[%clk 0:00:06]} 54. h5 {[%clk 0:00:09]}  Rd1 {[%clk 0:00:06]} 55. Ke2 {[%clk 0:00:09]}  Rh1 {[%clk 0:00:06]} 56. Rd4 {[%clk 0:00:09]}  Ke7 {[%clk 0:00:06]} 57. Nf2 {[%clk 0:00:07]}  Rh2 {[%clk 0:00:07]} 58. Kf1 {[%clk 0:00:06]}  Bc5 {[%clk 0:00:07]} 59. Rd2 {[%clk 0:00:05]}  Bxf2 {[%clk 0:00:04]} 60. Rxf2 {[%clk 0:00:06]}  Rxf2+ {[%clk 0:00:04]} 61. Kxf2 {[%clk 0:00:07]}  e5 {[%clk 0:00:05]} 62. Ke3 {[%clk 0:00:07]}  Kf6 {[%clk 0:00:05]} 63. Ke4 {[%clk 0:00:07]}  g6 {[%clk 0:00:06]} 64. h6 {[%clk 0:00:05]}  g5 {[%clk 0:00:06]} 65. Kd5 {[%clk 0:00:05]}  Kg6 {[%clk 0:00:07]} 66. Kxe5 {[%clk 0:00:05]}  Kxh6 {[%clk 0:00:07]} 67. Kf5 {[%clk 0:00:05]}  Kg7 {[%clk 0:00:07]} 68. Kxg5 {[%clk 0:00:06]}  Kf7 {[%clk 0:00:08]} 69. Kh6 {[%clk 0:00:06]}  Kg8 {[%clk 0:00:08]} 70. f4 {[%clk 0:00:05]}  Kh8 {[%clk 0:00:09]} 71. f5 {[%clk 0:00:06]}  Kg8 {[%clk 0:00:09]} 72. f6 {[%clk 0:00:06]}  Kh8 {[%clk 0:00:09]} 73. g5 {[%clk 0:00:06]}  Kg8 {[%clk 0:00:10]} 74. f7+ {[%clk 0:00:07]} 1-0


[Site "https://www.chess.com"]

[Event "Titled Tuesday Blitz December 06 Early 2022"]
[White "Lamaze, Simon"]
[Black "Ibarra Jerez, Jose Carlos"]
[WhiteFideId "36069264"]
[BlackFideId "2226332"]
[WhiteElo "2642"]
[BlackElo "2799"]
[Result "0-1"]
[Round "08"]
[TimeControl "180+1"]
[Date "2022.12.07"]
[WhiteClock "0:02:03"]
[BlackClock "0:02:19"]

1. e3 {[%clk 0:02:31]}  Nf6 {[%clk 0:02:59]} 2. Nf3 {[%clk 0:02:31]}  g6 {[%clk 0:02:59]} 3. b3 {[%clk 0:02:31]}  Bg7 {[%clk 0:02:58]} 4. Be2 {[%clk 0:02:31]}  c5 {[%clk 0:02:55]} 5. O-O {[%clk 0:02:30]}  Ne4 {[%clk 0:02:52]} 6. c3 {[%clk 0:02:29]}  O-O {[%clk 0:02:51]} 7. d4 {[%clk 0:02:30]}  d5 {[%clk 0:02:50]} 8. c4 {[%clk 0:02:29]}  dxc4 {[%clk 0:02:47]} 9. bxc4 {[%clk 0:02:30]}  Nc6 {[%clk 0:02:47]} 10. Bb2 {[%clk 0:02:24]}  cxd4 {[%clk 0:02:43]} 11. exd4 {[%clk 0:02:23]}  Qb6 {[%clk 0:02:33]} 12. Nbd2 {[%clk 0:02:05]}  Qxb2 {[%clk 0:02:19]} 13. Nxe4 {[%clk 0:02:04]}  Nxd4 {[%clk 0:02:19]} 14. Nxd4 {[%clk 0:02:03]}  Qxd4 {[%clk 0:02:19]} 0-1


[Site "https://www.chess.com"]

[Event "Titled Tuesday Blitz December 06 Early 2022"]
[White "Laylo, Darwin"]
[Black "Timofeev, Artyom"]
[WhiteFideId "5201330"]
[BlackFideId "4140419"]
[WhiteElo "2335"]
[BlackElo "2586"]
[Result "0-1"]
[Round "08"]
[TimeControl "180+1"]
[Date "2022.12.06"]
[WhiteClock "0:00:04"]
[BlackClock "0:00:10"]

1. d4 {[%clk 0:02:56]}  d5 {[%clk 0:02:59]} 2. Nf3 {[%clk 0:02:57]}  e6 {[%clk 0:02:57]} 3. g3 {[%clk 0:02:58]}  b5 {[%clk 0:02:56]} 4. Bg2 {[%clk 0:02:59]}  Bb7 {[%clk 0:02:57]} 5. O-O {[%clk 0:03:00]}  Nf6 {[%clk 0:02:56]} 6. a4 {[%clk 0:03:00]}  b4 {[%clk 0:02:56]} 7. c4 {[%clk 0:03:00]}  bxc3 {[%clk 0:02:56]} 8. bxc3 {[%clk 0:02:55]}  Nbd7 {[%clk 0:02:56]} 9. c4 {[%clk 0:02:55]}  dxc4 {[%clk 0:02:54]} 10. Qc2 {[%clk 0:02:55]}  Bd6 {[%clk 0:02:52]} 11. Nbd2 {[%clk 0:02:47]}  O-O {[%clk 0:02:47]} 12. Nxc4 {[%clk 0:02:47]}  Be4 {[%clk 0:02:47]} 13. Qd2 {[%clk 0:02:44]}  Rb8 {[%clk 0:02:42]} 14. Nxd6 {[%clk 0:02:43]}  cxd6 {[%clk 0:02:42]} 15. Ba3 {[%clk 0:02:44]}  Nb6 {[%clk 0:02:42]} 16. Rfc1 {[%clk 0:02:37]}  Bd5 {[%clk 0:02:21]} 17. Qd3 {[%clk 0:02:20]}  Nxa4 {[%clk 0:02:19]} 18. Ne5 {[%clk 0:01:46]}  Bxg2 {[%clk 0:02:00]} 19. Kxg2 {[%clk 0:01:44]}  dxe5 {[%clk 0:01:59]} 20. dxe5 {[%clk 0:01:19]}  Qxd3 {[%clk 0:01:15]} 21. exd3 {[%clk 0:01:20]}  Rfd8 {[%clk 0:01:12]} 22. Bd6 {[%clk 0:00:28]}  Rxd6 {[%clk 0:01:07]} 23. exd6 {[%clk 0:00:13]}  Nb6 {[%clk 0:01:06]} 24. Rxa7 {[%clk 0:00:14]}  Nbd7 {[%clk 0:01:03]} 25. Rcc7 {[%clk 0:00:13]}  Rd8 {[%clk 0:01:02]} 26. f4 {[%clk 0:00:12]}  h5 {[%clk 0:01:01]} 27. Kf3 {[%clk 0:00:12]}  g6 {[%clk 0:01:01]} 28. h3 {[%clk 0:00:13]}  e5 {[%clk 0:00:59]} 29. g4 {[%clk 0:00:12]}  hxg4+ {[%clk 0:00:59]} 30. hxg4 {[%clk 0:00:13]}  exf4 {[%clk 0:00:58]} 31. g5 {[%clk 0:00:11]}  Ne5+ {[%clk 0:00:50]} 32. Kxf4 {[%clk 0:00:10]}  Nxd3+ {[%clk 0:00:50]} 33. Kg3 {[%clk 0:00:03]}  Ne4+ {[%clk 0:00:49]} 34. Kh4 {[%clk 0:00:03]}  Ne5 {[%clk 0:00:42]} 35. d7 {[%clk 0:00:03]}  Kf8 {[%clk 0:00:40]} 36. Ra4 {[%clk 0:00:02]}  Nd6 {[%clk 0:00:39]} 37. Ra5 {[%clk 0:00:02]}  Nxd7 {[%clk 0:00:36]} 38. Raa7 {[%clk 0:00:01]}  Ke7 {[%clk 0:00:35]} 39. Kh3 {[%clk 0:00:01]}  Nf5 {[%clk 0:00:32]} 40. Kg4 {[%clk 0:00:02]}  Ne3+ {[%clk 0:00:31]} 41. Kf3 {[%clk 0:00:02]}  Nd5 {[%clk 0:00:31]} 42. Rc1 {[%clk 0:00:02]}  Kd6 {[%clk 0:00:29]} 43. Re1 {[%clk 0:00:02]}  Rb8 {[%clk 0:00:27]} 44. Rd1 {[%clk 0:00:02]}  Rb3+ {[%clk 0:00:27]} 45. Kg2 {[%clk 0:00:03]}  Rb5 {[%clk 0:00:22]} 46. Ra6+ {[%clk 0:00:02]}  Nb6 {[%clk 0:00:20]} 47. Ra7 {[%clk 0:00:02]}  Nd7 {[%clk 0:00:14]} 48. Ra6+ {[%clk 0:00:02]}  Rb6 {[%clk 0:00:14]} 49. Ra7 {[%clk 0:00:01]}  Rb2+ {[%clk 0:00:13]} 50. Kg3 {[%clk 0:00:01]}  Nc5 {[%clk 0:00:11]} 51. Ra8 {[%clk 0:00:01]}  Ne4+ {[%clk 0:00:11]} 52. Kf3 {[%clk 0:00:01]}  Nxg5+ {[%clk 0:00:11]} 53. Kg4 {[%clk 0:00:02]}  Ne6 {[%clk 0:00:11]} 54. Ra6+ {[%clk 0:00:02]}  Ke5 {[%clk 0:00:11]} 55. Ra5 {[%clk 0:00:02]}  f5+ {[%clk 0:00:11]} 56. Kf3 {[%clk 0:00:02]}  Rb3+ {[%clk 0:00:11]} 57. Kg2 {[%clk 0:00:03]}  Nf4+ {[%clk 0:00:11]} 58. Kh1 {[%clk 0:00:03]}  Kf6 {[%clk 0:00:11]} 59. Ra6+ {[%clk 0:00:02]}  Kg5 {[%clk 0:00:11]} 60. Rg1+ {[%clk 0:00:03]}  Kh5 {[%clk 0:00:11]} 61. Rf1 {[%clk 0:00:02]}  Rh3+ {[%clk 0:00:10]} 62. Kg1 {[%clk 0:00:03]}  Rg3+ {[%clk 0:00:10]} 63. Kf2 {[%clk 0:00:03]}  Rg2+ {[%clk 0:00:10]} 64. Ke1 {[%clk 0:00:04]}  Nd3+ {[%clk 0:00:10]} 0-1


[Site "https://www.chess.com"]

[Event "Titled Tuesday Blitz December 06 Early 2022"]
[White "Lehtosaari, Mauri"]
[Black "Liu, Xiangyi"]
[WhiteFideId "501999"]
[BlackFideId "8605718"]
[WhiteElo "2503"]
[BlackElo "2323"]
[Result "0-1"]
[Round "08"]
[TimeControl "180+1"]
[Date "2022.12.07"]
[WhiteClock "0:00:01"]
[BlackClock "0:00:19"]

1. d4 {[%clk 0:03:00]}  Nf6 {[%clk 0:02:40]} 2. Nf3 {[%clk 0:03:01]}  b6 {[%clk 0:02:39]} 3. Bg5 {[%clk 0:02:59]}  Ne4 {[%clk 0:02:38]} 4. Bf4 {[%clk 0:02:58]}  Bb7 {[%clk 0:02:38]} 5. Nbd2 {[%clk 0:02:58]}  d5 {[%clk 0:02:38]} 6. e3 {[%clk 0:02:57]}  Nd7 {[%clk 0:02:34]} 7. Nxe4 {[%clk 0:02:56]}  dxe4 {[%clk 0:02:34]} 8. Nd2 {[%clk 0:02:56]}  e6 {[%clk 0:02:21]} 9. Bc4 {[%clk 0:02:48]}  Bd6 {[%clk 0:02:21]} 10. Qg4 {[%clk 0:02:12]}  Nf6 {[%clk 0:02:19]} 11. Qh4 {[%clk 0:02:12]}  h6 {[%clk 0:01:27]} 12. h3 {[%clk 0:01:58]}  Qd7 {[%clk 0:01:15]} 13. a4 {[%clk 0:01:46]}  O-O-O {[%clk 0:01:10]} 14. Bxd6 {[%clk 0:01:46]}  cxd6 {[%clk 0:01:10]} 15. Bb5 {[%clk 0:01:36]}  Qc7 {[%clk 0:01:07]} 16. O-O {[%clk 0:01:21]}  g5 {[%clk 0:00:59]} 17. Qg3 {[%clk 0:01:22]}  Nh5 {[%clk 0:00:59]} 18. Qg4 {[%clk 0:01:21]}  Ng7 {[%clk 0:00:59]} 19. Qg3 {[%clk 0:01:21]}  Nf5 {[%clk 0:00:56]} 20. Qh2 {[%clk 0:01:11]}  a6 {[%clk 0:00:52]} 21. Be2 {[%clk 0:01:09]}  h5 {[%clk 0:00:49]} 22. Rfc1 {[%clk 0:00:51]}  Rdg8 {[%clk 0:00:49]} 23. c4 {[%clk 0:00:49]}  g4 {[%clk 0:00:48]} 24. hxg4 {[%clk 0:00:46]}  hxg4 {[%clk 0:00:48]} 25. Qf4 {[%clk 0:00:47]}  f6 {[%clk 0:00:39]} 26. Bxg4 {[%clk 0:00:22]}  Rh4 {[%clk 0:00:39]} 27. Bxf5 {[%clk 0:00:16]}  Rxf4 {[%clk 0:00:38]} 28. Bxe6+ {[%clk 0:00:16]}  Kb8 {[%clk 0:00:37]} 29. Bxg8 {[%clk 0:00:17]}  Rg4 {[%clk 0:00:36]} 30. Be6 {[%clk 0:00:17]}  Rg5 {[%clk 0:00:36]} 31. Bh3 {[%clk 0:00:16]}  a5 {[%clk 0:00:35]} 32. c5 {[%clk 0:00:16]}  dxc5 {[%clk 0:00:34]} 33. Nc4 {[%clk 0:00:15]}  Ka7 {[%clk 0:00:31]} 34. Na3 {[%clk 0:00:14]}  Ba6 {[%clk 0:00:30]} 35. Rc2 {[%clk 0:00:13]}  Qh7 {[%clk 0:00:27]} 36. Kh2 {[%clk 0:00:12]}  cxd4 {[%clk 0:00:26]} 37. Rac1 {[%clk 0:00:11]}  Rg7 {[%clk 0:00:23]} 38. exd4 {[%clk 0:00:11]}  Qh6 {[%clk 0:00:22]} 39. Rc7+ {[%clk 0:00:10]}  Rxc7 {[%clk 0:00:21]} 40. Rxc7+ {[%clk 0:00:11]}  Kb8 {[%clk 0:00:22]} 41. Rc6 {[%clk 0:00:11]}  Kb7 {[%clk 0:00:21]} 42. Re6 {[%clk 0:00:07]}  Qf4+ {[%clk 0:00:21]} 43. Kg1 {[%clk 0:00:07]}  Qc1+ {[%clk 0:00:21]} 44. Kh2 {[%clk 0:00:07]}  Qxb2 {[%clk 0:00:22]} 45. Re7+ {[%clk 0:00:06]}  Kc6 {[%clk 0:00:22]} 46. Nb5 {[%clk 0:00:04]}  Bxb5 {[%clk 0:00:21]} 47. axb5+ {[%clk 0:00:03]}  Kxb5 {[%clk 0:00:21]} 48. Rxe4 {[%clk 0:00:02]}  a4 {[%clk 0:00:22]} 49. Bd7+ {[%clk 0:00:01]}  Ka5 {[%clk 0:00:20]} 50. d5 {[%clk 0:00:01]}  b5 {[%clk 0:00:20]} 51. d6 {[%clk 0:00:01]}  Qd2 {[%clk 0:00:21]} 52. Re7 {[%clk 0:00:01]}  Qxd6+ {[%clk 0:00:19]} 0-1


[Site "https://www.chess.com"]

[Event "Titled Tuesday Blitz December 06 Early 2022"]
[White "Leve, Nitai"]
[Black "Skliarov, Viktor"]
[WhiteFideId "2006898"]
[BlackFideId "14106736"]
[WhiteElo "2144"]
[BlackElo "2284"]
[Result "1-0"]
[Round "08"]
[TimeControl "180+1"]
[Date "2022.12.07"]
[WhiteClock "0:01:46"]
[BlackClock "0:00:21"]

1. e4 {[%clk 0:03:00]}  c5 {[%clk 0:02:58]} 2. Nf3 {[%clk 0:03:00]}  Nc6 {[%clk 0:02:58]} 3. d4 {[%clk 0:03:00]}  cxd4 {[%clk 0:02:59]} 4. Nxd4 {[%clk 0:03:01]}  g6 {[%clk 0:02:56]} 5. Nc3 {[%clk 0:03:01]}  Bg7 {[%clk 0:02:53]} 6. Be3 {[%clk 0:02:59]}  Nf6 {[%clk 0:02:52]} 7. Be2 {[%clk 0:02:59]}  O-O {[%clk 0:02:51]} 8. f4 {[%clk 0:03:00]}  d5 {[%clk 0:02:39]} 9. e5 {[%clk 0:02:59]}  Ne8 {[%clk 0:02:38]} 10. Bf3 {[%clk 0:02:58]}  Nc7 {[%clk 0:02:33]} 11. O-O {[%clk 0:02:53]}  Nxd4 {[%clk 0:02:11]} 12. Qxd4 {[%clk 0:02:51]}  e6 {[%clk 0:02:00]} 13. Rac1 {[%clk 0:02:42]}  b6 {[%clk 0:01:55]} 14. Qb4 {[%clk 0:02:35]}  Ba6 {[%clk 0:01:43]} 15. Rfd1 {[%clk 0:02:35]}  Rc8 {[%clk 0:01:41]} 16. Ne4 {[%clk 0:02:30]}  dxe4 {[%clk 0:01:19]} 17. Rxd8 {[%clk 0:02:29]}  exf3 {[%clk 0:01:18]} 18. Rxc8 {[%clk 0:02:17]}  Rxc8 {[%clk 0:01:16]} 19. c4 {[%clk 0:02:11]}  fxg2 {[%clk 0:01:15]} 20. Kxg2 {[%clk 0:02:10]}  Bb7+ {[%clk 0:01:13]} 21. Kf2 {[%clk 0:02:06]}  Rd8 {[%clk 0:00:39]} 22. Qe7 {[%clk 0:02:01]}  Rc8 {[%clk 0:00:33]} 23. Rd1 {[%clk 0:02:01]}  Bf8 {[%clk 0:00:30]} 24. Rd8 {[%clk 0:02:00]}  Rxd8 {[%clk 0:00:22]} 25. Qxd8 {[%clk 0:02:01]}  Na6 {[%clk 0:00:21]} 26. f5 {[%clk 0:01:46]} 1-0


[Site "https://www.chess.com"]